fUSD/lending_fUSD_20250417
["ID","MTS","AMOUNT","RATE_DAILY","PERIOD"]
[358256434,1744876364624,-531.0,0.00055342,120]
[358256435,1744876364633,-1110.06,0.00055342,120]
[358256436,1744876364642,-315.18816954,0.00055342,120]
[358256437,1744876364652,-3548.1,0.00055342,120]
[358256438,1744876364661,-887.03,0.00055342,120]
[358256439,1744876364670,-1073.22,0.00055342,120]
[358256440,1744876364680,-1152.77,0.00055342,120]
[358256441,1744876364689,-2168.54,0.00055342,120]
[358256442,1744876364698,-568.46,0.00055342,120]
[358256443,1744876364708,-888.6,0.00055342,120]
[358256444,1744876364717,-979.12,0.00055342,120]
[358256445,1744876364727,-364.60397916,0.00055342,120]
[358256446,1744876364736,-2832.46,0.00055342,120]
[358256447,1744876364746,-518.93,0.00055342,120]
[358256448,1744876364755,-205.52518764,0.00055342,120]
[358256449,1744876364765,-1780.21,0.00055342,120]
[358256450,1744876364775,-1076.61,0.00055342,120]
[358256451,1744876364784,-889.68,0.00055342,120]
[358256452,1744876364794,-3566.71,0.00055342,120]
[358256453,1744876364804,-1124.76,0.00055342,120]
[358256454,1744876364813,-1217.56,0.00055342,120]
[358256455,1744876364823,-1639.19,0.00055342,120]
[358256456,1744876364833,-972.81,0.00055342,118]
[358256457,1744876364843,-1092.56,0.00055342,120]
[358256458,1744876364852,-1788.27,0.00055342,120]
[358256459,1744876364862,-822.54,0.00055342,120]
[358256460,1744876364871,-500.0,0.00055342,120]
[358256461,1744876364881,-861.37,0.00055342,120]
[358256462,1744876364890,-702.66,0.00055342,120]
[358256463,1744876364900,-1270.01,0.00055342,120]
[358256464,1744876364910,-909.8,0.00055342,120]
[358256465,1744876364919,-593.0,0.00055342,120]
[358256466,1744876364929,-753.51,0.00055342,120]
[358256467,1744876364938,-516.56,0.00055342,120]
[358256468,1744876364948,-973.47,0.00055342,120]
[358256469,1744876364957,-2790.52,0.00055342,120]
[358256470,1744876364967,-554.36,0.00055342,120]
[358256471,1744876364976,-555.93,0.00055342,120]
[358256472,1744876364986,-500.0,0.00055342,120]
[358256473,1744876364996,-1344.71,0.00055342,120]
[358256474,1744876365006,-1633.9,0.00055342,120]
[358256475,1744876365015,-1508.99,0.00055342,120]
[358256476,1744876365025,-801.2,0.00055342,120]
[358256477,1744876365035,-2484.07,0.00055342,120]
[358256478,1744876365044,-3739.63,0.00055342,120]
[358256479,1744876365054,-605.98,0.00055342,120]
[358256480,1744876365064,-3141.6,0.00055342,120]
[358256481,1744876365074,-536.48,0.00055342,120]
[358256482,1744876365084,-1042.98,0.00055342,120]
[358256483,1744876365094,-1821.22,0.00055342,120]
[358256484,1744876365104,-1155.97,0.00055342,120]
[358256485,1744876365114,-608.82,0.00055342,120]
[358256486,1744876365123,-1542.01,0.00055342,120]
[358256487,1744876365133,-286.76723541,0.00055342,120]
[358256488,1744876365145,-608.54,0.00055342,120]
[358256489,1744876365155,-1023.29,0.00055342,120]
[358256490,1744876365164,-505.15,0.00055342,120]
[358256491,1744876365174,-996.12,0.00055342,120]
[358256492,1744876365185,-821.03,0.00055342,120]
[358256493,1744876365195,-533.51,0.00055342,120]
[358256494,1744876365205,-1488.96,0.00055342,120]
[358256495,1744876365216,-2888.97,0.00055342,120]
[358256496,1744876365227,-605.83,0.00055342,120]
[358256497,1744876365237,-570.18,0.00055342,120]
[358256498,1744876365246,-722.72,0.00055342,120]
[358256499,1744876365256,-754.15,0.00055342,120]
[358256500,1744876365267,-1214.83,0.00055342,120]
[358256501,1744876365278,-1002.18,0.00055342,8]
[358256502,1744876365287,-1218.38,0.00055342,120]
[358256503,1744876365297,-1097.9,0.00055342,120]
[358256504,1744876365308,-1622.19,0.00055342,120]
[358256505,1744876365318,-7361.74,0.00055342,120]
[358256506,1744876365328,-779.5,0.00055342,120]
[358256507,1744876365338,-2365.86,0.00055342,120]
[358256508,1744876365348,-160.4,0.000554,54]
[358256509,1744876365359,-160.4,0.000554,54]
[358256510,1744876365369,-500.0,0.00055411,120]
[358256511,1744876365379,-2959.86,0.000555,60]
[358256512,1744876365389,-258.0,0.000555,120]
[358256513,1744876365399,-1312.0,0.000555,30]
[358256514,1744876365409,-502.71666767,0.000555,30]
[358256515,1744876365419,-454.08,0.00055549,2]
[358256516,1744876365428,-452.68597031,0.00055616,120]
[358256517,1744876365439,-591.156374,0.00055616,120]
[358256518,1744876365448,-227.981738,0.00055616,120]
[358256519,1744876365457,-154.263894,0.00055616,120]
[358256520,1744876365467,-1611.97461897,0.00055616,120]
[358256521,1744876365477,-772.15611949,0.00055616,120]
[358256522,1744876365487,-3077.21545946,0.00055616,120]
[358256523,1744876365497,-516.12648775,0.00055616,120]
[358256524,1744876365506,-825.90994549,0.00055616,120]
[358256525,1744876365516,-1330.05326145,0.00055616,120]
[358256526,1744876365526,-1041.55895825,0.00055616,120]
[358256527,1744876365536,-995.84026173,0.00055616,120]
[358256528,1744876365546,-561.65555131,0.00055616,30]
[358256529,1744876365556,-889.29487389,0.00055616,120]
[358256530,1744876365566,-1598.22616115,0.00055616,120]
[358256531,1744876365576,-2447.16275596,0.00055616,120]
[358256532,1744876365587,-935.00391072,0.00055616,120]
[358256533,1744876365597,-559.04166086,0.00055616,120]
[358256534,1744876365607,-120995.29408298,0.00055616,7]
[358256535,1744876365616,-1597.3483728,0.00055616,120]
[358256536,1744876365626,-724.28688215,0.00055616,2]
[358256537,1744876365635,-1073.29245842,0.00055616,120]
[358256538,1744876365645,-852.71364615,0.00055616,120]
[358256539,1744876365655,-9618.96447623,0.00055616,2]
[358256540,1744876365665,-748.83812931,0.00055616,120]
[358256541,1744876365676,-507.65133393,0.00055616,120]
[358256542,1744876365686,-4167.1511081,0.00055616,120]
[358256543,1744876365697,-547.66777953,0.00055616,120]
[358256544,1744876365707,-762.66532865,0.00055616,120]
[358256545,1744876365718,-1761.34178861,0.00055616,120]
[358256546,1744876365729,-603.12130578,0.00055616,120]
[358256547,1744876365739,-677.97420809,0.00055616,120]
[358256548,1744876365749,-896.09027104,0.00055616,120]
[358256549,1744876365759,-2042.74625415,0.00055616,120]
[358256550,1744876365768,-2095.42331078,0.00055616,120]
[358256551,1744876365779,-783.94852329,0.00055616,120]
[358256552,1744876365789,-568.83100649,0.00055616,120]
[358256553,1744876365800,-670.8750579,0.00055616,120]
[358256554,1744876365810,-1727.78300189,0.00055616,120]
[358256555,1744876365820,-1214.32893586,0.00055616,120]
[358256556,1744876365830,-500.0,0.00055616,38]
[358256557,1744876365840,-563.37105196,0.00055616,120]
[358256558,1744876365850,-765.40498464,0.00055616,120]
[358256559,1744876365860,-781.99045543,0.00055616,120]
[358256560,1744876365870,-2735.82851968,0.00055616,120]
[358256561,1744876365880,-2102.9729519,0.00055616,120]
[358256562,1744876365890,-541.43034503,0.00055616,120]
[358256563,1744876365901,-525.13685207,0.00055616,120]
[358256564,1744876365913,-776.76334155,0.00055616,120]
[358256565,1744876365923,-1055.73996539,0.00055616,120]
[358256566,1744876365934,-1656.49866031,0.00055616,120]
[358256567,1744876365944,-1158.40519742,0.00055616,35]
[358256568,1744876365954,-1489.87132047,0.00055616,120]
[358256569,1744876365964,-1223.41260383,0.00055616,120]
[358256570,1744876365974,-1296.94053963,0.00055616,120]
[358256571,1744876365984,-606.98470997,0.00055616,120]
[358256572,1744876365994,-1176.81518677,0.00055616,120]
[358256573,1744876366004,-1628.26204343,0.00055616,120]
[358256574,1744876366014,-1112.76222135,0.00055616,120]
[358256575,1744876366024,-2221.33221192,0.00055616,120]
[358256576,1744876366034,-530.75699805,0.00055616,120]
[358256577,1744876366044,-862.30064191,0.00055616,120]
[358256578,1744876366054,-1379.56963156,0.00055616,120]
[358256579,1744876366064,-507.50661882,0.00055616,120]
[358256580,1744876366074,-997.7542761,0.00055616,120]
[358256581,1744876366084,-1247.60297744,0.00055616,120]
[358256582,1744876366094,-519.33981097,0.00055616,120]
[358256583,1744876366104,-730.85935553,0.00055616,120]
[358256584,1744876366115,-946.6384701,0.00055616,120]
[358256585,1744876366125,-1007.53733854,0.00055616,120]
[358256586,1744876366136,-559.99639875,0.00055616,120]
[358256587,1744876366147,-1373.73167443,0.00055616,120]
[358256588,1744876366157,-940.20467313,0.00055616,120]
[358256589,1744876366167,-1203.4594289,0.00055616,120]
[358256590,1744876366177,-825.70345872,0.00055616,120]
[358256591,1744876366189,-1576.05836353,0.00055616,120]
[358256592,1744876366200,-1004.62220975,0.00055616,120]
[358256593,1744876366211,-1167.08433536,0.00055616,120]
[358256594,1744876366222,-701.2033817,0.00055616,120]
[358256595,1744876366232,-1324.05422002,0.00055616,120]
[358256596,1744876366242,-803.4,0.00055616,30]
[358256597,1744876366252,-508.12,0.00055616,120]
[358256598,1744876366262,-1748.60640674,0.00055616,120]
[358256599,1744876366272,-3514.53409785,0.00055616,120]
[358256600,1744876366282,-1749.22910499,0.00055616,120]
[358256601,1744876366292,-1134.24120064,0.00055616,120]
[358256602,1744876366304,-1158.05157227,0.00055616,120]
[358256603,1744876366315,-1115.61094988,0.00055616,120]
[358256604,1744876366325,-1270.17962174,0.00055616,120]
[358256605,1744876366335,-1020.18701862,0.00055616,120]
[358256606,1744876366346,-1129.26656275,0.00055616,120]
[358256607,1744876366356,-1581.2722851,0.00055616,120]
[358256608,1744876366366,-766.72813364,0.00055616,120]
[358256609,1744876366378,-683.62162215,0.00055616,120]
[358256610,1744876366389,-605.245698,0.00055616,120]
[358256611,1744876366400,-1943.64921061,0.00055616,120]
[358256612,1744876366410,-945.92355983,0.00055616,120]
[358256613,1744876366420,-1873.83624563,0.00055616,120]
[358256614,1744876366430,-567.11712784,0.00055616,120]
[358256615,1744876366440,-536.83561799,0.00055616,120]
[358256616,1744876366450,-1511.34298725,0.00055616,120]
[358256617,1744876366460,-2015.87108882,0.00055616,120]
[358256618,1744876366470,-576.19671123,0.00055616,120]
[358256619,1744876366480,-503.14441634,0.00055616,120]
[358256620,1744876366490,-1485.30089018,0.00055616,120]
[358256621,1744876366500,-616.90276595,0.00055616,120]
[358256622,1744876366510,-1889.47617228,0.00055616,120]
[358256623,1744876366520,-521.62533959,0.00055616,120]
[358256624,1744876366531,-1626.48535019,0.00055616,120]
[358256625,1744876366541,-1339.40645458,0.00055616,120]
[358256626,1744876366551,-1497.42700532,0.00055616,120]
[358256627,1744876366562,-631.04348064,0.00055616,120]
[358256628,1744876366572,-1832.27872085,0.00055616,120]
[358256629,1744876366582,-615.8436452,0.00055616,120]
[358256630,1744876366592,-692.36831916,0.00055616,120]
[358256631,1744876366603,-1043.44534455,0.00055616,120]
[358256632,1744876366613,-1232.06624267,0.00055616,120]
[358256633,1744876366623,-1684.75,0.00055616,120]
[358256634,1744876366633,-668.27035801,0.00055616,120]
[358256635,1744876366644,-864.5494748,0.00055616,120]
[358256636,1744876366654,-626.15881958,0.00055616,120]
[358256637,1744876366663,-1072.66543018,0.00055616,120]
[358256638,1744876366673,-1765.00904418,0.00055616,120]
[358256639,1744876366684,-5640.83605703,0.00055616,120]
[358256640,1744876366694,-918.18135486,0.00055616,120]
[358256641,1744876366704,-1475.64198131,0.00055616,120]
[358256642,1744876366715,-1612.97,0.00055616,120]
[358256643,1744876366724,-274.00911916,0.00055616,120]
[358256644,1744876366734,-792.02177718,0.00055616,14]
[358256645,1744876366744,-2211.19222908,0.00055616,120]
[358256646,1744876366754,-1177.24705134,0.00055616,120]
[358256647,1744876366764,-1468.1610025,0.00055616,120]
[358256648,1744876366775,-1829.50298578,0.00055616,120]
[358256649,1744876366785,-520.81178342,0.00055616,120]
[358256650,1744876366795,-793.66595416,0.00055616,120]
[358256651,1744876366805,-1128.25919278,0.00055616,120]
[358256652,1744876366816,-527.52618124,0.00055616,120]
[358256653,1744876367088,-674.54934961,0.00055616,120]
[358256654,1744876367099,-504.61783439,0.00055616,120]
[358256655,1744876367109,-586.80180356,0.00055616,120]
[358256656,1744876367119,-1036.88685156,0.00055616,120]
[358256657,1744876367130,-909.4960575,0.00055616,120]
[358256658,1744876367142,-1172.07644564,0.00055616,120]
[358256659,1744876367152,-2181.49162385,0.00055616,120]
[358256660,1744876367161,-675.18225697,0.00055616,120]
[358256661,1744876367171,-429.0971125,0.00055616,120]
[358256662,1744876367182,-1081.62605846,0.00055616,120]
[358256663,1744876367192,-1595.74856049,0.00055616,120]
[358256664,1744876367202,-1097.55790023,0.00055616,120]
[358256665,1744876367215,-1093.84997944,0.00055616,120]
[358256666,1744876367224,-722.05970095,0.00055616,120]
[358256667,1744876367234,-978.67340887,0.00055616,120]
[358256668,1744876367243,-1836.83527827,0.00055616,120]
[358256669,1744876367254,-614.44104914,0.00055616,120]
[358256670,1744876367263,-1012.23060153,0.00055616,120]
[358256671,1744876367273,-2529.43258091,0.00055616,120]
[358256672,1744876367283,-1942.63067049,0.00055616,120]
[358256673,1744876367294,-2464.77735307,0.00055616,120]
[358256674,1744876367305,-771.88118981,0.00055616,120]
[358256675,1744876367315,-1110.37484758,0.00055616,120]
[358256676,1744876367326,-1931.34256331,0.00055616,120]
[358256677,1744876367336,-676.23881022,0.00055616,120]
[358256678,1744876367346,-601.78614243,0.00055616,120]
[358256679,1744876367356,-2027.58098849,0.00055616,120]
[358256680,1744876367366,-1731.74422319,0.00055616,120]
[358256681,1744876367376,-506.51,0.00055616,120]
[358256682,1744876367387,-560.79385613,0.00055616,120]
[358256683,1744876367397,-1571.73100787,0.00055616,120]
[358256684,1744876367407,-575.40336293,0.00055616,120]
[358256685,1744876367416,-1492.10299611,0.00055616,120]
[358256686,1744876367426,-1061.37987149,0.00055616,120]
[358256687,1744876367435,-560.05566694,0.00055616,120]
[358256688,1744876367446,-1783.12688798,0.00055616,120]
[358256689,1744876367456,-794.17372454,0.00055616,120]
[358256690,1744876367465,-1489.60735167,0.00055616,120]
[358256691,1744876367475,-3035.62408734,0.00055616,120]
[358256692,1744876367484,-1985.72818475,0.00055616,120]
[358256693,1744876367494,-2015.47466681,0.00055616,120]
[358256694,1744876367504,-835.38814296,0.00055616,120]
[358256695,1744876367515,-843.35205796,0.00055616,120]
[358256696,1744876367525,-2125.76804701,0.00055616,120]
[358256697,1744876367534,-728.49639695,0.00055616,120]
[358256698,1744876367544,-506.70852679,0.00055616,120]
[358256699,1744876367555,-518.01,0.00055616,120]
[358256700,1744876367565,-531.2142998,0.00055616,120]
[358256701,1744876367575,-1110.29035292,0.00055616,120]
[358256702,1744876367584,-3548.27295782,0.00055616,120]
[358256703,1744876367594,-887.21984566,0.00055616,120]
[358256704,1744876367603,-1073.43642829,0.00055616,120]
[358256705,1744876367614,-1152.94166671,0.00055616,120]
[358256706,1744876367624,-2168.76833185,0.00055616,120]
[358256707,1744876367633,-568.59455129,0.00055616,120]
[358256708,1744876367643,-888.67602269,0.00055616,120]
[358256709,1744876367653,-979.3409948,0.00055616,120]
[358256710,1744876367662,-2832.50463772,0.00055616,120]
[358256711,1744876367672,-519.08260415,0.00055616,120]
[358256712,1744876367681,-1780.2345351,0.00055616,120]
[358256713,1744876367691,-1076.78885079,0.00055616,120]
[358256714,1744876367700,-889.90007546,0.00055616,120]
[358256715,1744876367709,-3566.71396361,0.00055616,120]
[358256716,1744876367719,-1124.91001368,0.00055616,120]
[358256717,1744876367729,-1217.62816851,0.00055616,120]
[358256718,1744876367739,-1639.23335488,0.00055616,120]
[358256719,1744876367749,-973.04297544,0.00055616,118]
[358256720,1744876367758,-1092.64933035,0.00055616,120]
[358256721,1744876367767,-1788.48914276,0.00055616,120]
[358256722,1744876367777,-822.54534968,0.00055616,120]
[358256723,1744876367786,-408.11271254,0.00055616,120]
[358256724,1744876367796,-861.39839941,0.00055616,120]
[358256725,1744876367807,-702.80479428,0.00055616,120]
[358256726,1744876367816,-1270.08463527,0.00055616,120]
[358256727,1744876367826,-909.80257561,0.00055616,120]
[358256728,1744876367836,-593.11698206,0.00055616,120]
[358256729,1744876367845,-753.69544401,0.00055616,120]
[358256730,1744876367855,-516.68337492,0.00055616,120]
[358256731,1744876367864,-973.70250181,0.00055616,120]
[358256732,1744876367874,-554.47,0.00055616,120]
[358256733,1744876367884,-556.01880372,0.00055616,120]
[358256734,1744876367893,-256.43,0.00055616,120]
[358256735,1744876367903,-1344.73637863,0.00055616,120]
[358256736,1744876367912,-1634.00818732,0.00055616,120]
[358256737,1744876367921,-2790.66088319,0.00055616,120]
[358256738,1744876367931,-1509.14653274,0.00055616,120]
[358256739,1744876367940,-801.27747502,0.00055616,120]
[358256740,1744876367950,-2484.24338146,0.00055616,120]
[358256741,1744876367959,-3739.75650861,0.00055616,120]
[358256742,1744876367969,-606.00557401,0.00055616,120]
[358256743,1744876367978,-3141.75067361,0.00055616,120]
[358256744,1744876367988,-536.54084875,0.00055616,120]
[358256745,1744876367998,-1043.17356187,0.00055616,120]
[358256746,1744876368007,-1821.41695418,0.00055616,120]
[358256747,1744876368017,-1156.10083515,0.00055616,120]
[358256748,1744876368026,-609.01960963,0.00055616,120]
[358256749,1744876368036,-1542.11868422,0.00055616,120]
[358256750,1744876368046,-608.66614364,0.00055616,120]
[358256751,1744876368056,-1023.49532913,0.00055616,120]
[358256752,1744876368066,-505.28313703,0.00055616,120]
[358256753,1744876368075,-996.24916737,0.00055616,120]
[358256754,1744876368085,-821.05842856,0.00055616,120]
[358256755,1744876368095,-533.6108012,0.00055616,120]
[358256756,1744876368105,-1488.99764707,0.00055616,120]
[358256757,1744876368115,-2888.99786009,0.00055616,120]
[358256758,1744876368125,-605.89246546,0.00055616,120]
[358256759,1744876368135,-570.28998799,0.00055616,120]
[358256760,1744876368147,-722.91010531,0.00055616,120]
[358256761,1744876368157,-754.20685888,0.00055616,120]
[358256762,1744876368167,-1215.05793535,0.00055616,120]
[358256763,1744876368176,-1002.24722985,0.00055616,8]
[358256764,1744876368186,-1218.57999259,0.00055616,120]
[358256765,1744876368195,-1098.11208978,0.00055616,120]
[358256766,1744876368206,-1622.33569069,0.00055616,120]
[358256767,1744876368216,-779.54475496,0.00055616,120]
[358256768,1744876368226,-7361.8694,0.00055616,120]
[358256769,1744876368235,-2366.03128919,0.00055616,120]
[358256770,1744876368245,-500.0,0.00055685,120]
[358256771,1744876368255,-1068.0,0.00055788,120]
[358256772,1744876368265,-500.0,0.00055959,120]
[358256773,1744876368275,-50000.0,0.00056,56]
[358256774,1744876368285,-580.0,0.00056,14]
[358256775,1744876368295,-860.0,0.00056,120]
[358256776,1744876368305,-900.0,0.00056,120]
[358256777,1744876368315,-3600.0,0.00056,57]
[358256778,1744876368325,-300.0,0.00056,120]
[358256779,1744876368334,-2000.0,0.00056,120]
[358256780,1744876368344,-2000.0,0.00056,120]
[358256781,1744876368353,-2000.0,0.00056,120]
[358256782,1744876368363,-856.0,0.00056,120]
[358256783,1744876368373,-206.0,0.0005602,30]
[358256784,1744876368383,-1312.0,0.00056055,30]
[358256785,1744876368393,-500.0,0.00056164,40]
[358256786,1744876368403,-2000.0,0.000562,90]
[358256787,1744876368412,-500.0,0.00056233,120]
[358256788,1744876368423,-250.0,0.000563,30]
[358256789,1744876368433,-250.0,0.000563,30]
[358256790,1744876368443,-250.0,0.000563,30]
[358256791,1744876368452,-205.72,0.000563,7]
[358256792,1744876368463,-500.0,0.00056364,120]
[358256793,1744876368474,-797.0,0.00056376,30]
[358256794,1744876368484,-200.0,0.00056475,120]
[358256795,1744876368494,-900.0,0.000565,120]
[358256796,1744876368503,-500.0,0.00056507,120]
[358256797,1744876368513,-1312.0,0.0005661,30]
[358256798,1744876368523,-500.0,0.00056712,42]
[358256799,1744876368533,-2959.86,0.000568,60]
[358256800,1744876368543,-1486.417317,0.00056841,120]
[358256801,1744876368553,-209.0,0.0005697,120]
[358256802,1744876368563,-50000.0,0.00057,57]
[358256803,1744876368573,-1800.0,0.00057,58]
[358256804,1744876368583,-2000.0,0.00057,120]
[358256805,1744876368593,-2000.0,0.00057,120]
[358256806,1744876368602,-152.0,0.00057093,5]
[358256807,1744876368612,-209.0,0.0005712,30]
[358256808,1744876368621,-1312.0,0.00057165,30]
[358256809,1744876368631,-500.0,0.0005726,44]
[358256810,1744876368641,-1288.0,0.00057383,120]
[358256811,1744876368651,-2048.0,0.00057383,120]
[358256812,1744876368660,-1328.0,0.00057383,120]
[358256813,1744876368670,-792.0,0.00057383,2]
[358256814,1744876368679,-545.0,0.00057383,120]
[358256815,1744876368688,-1280.0,0.00057383,120]
[358256816,1744876368698,-907.0,0.00057383,120]
[358256817,1744876368708,-1439.0,0.00057383,120]
[358256818,1744876368718,-576.0,0.00057383,120]
[358256819,1744876368728,-4150.0,0.00057383,120]
[358256820,1744876368737,-150.0,0.00057383,120]
[358256821,1744876368747,-152.0,0.00057383,120]
[358256822,1744876368758,-3967.0,0.00057383,120]
[358256823,1744876368768,-865.0,0.00057383,120]
[358256824,1744876368779,-563.56,0.00057411,2]
[358256825,1744876368790,-508.01,0.00057482,2]
[358256826,1744876368800,-824.39017047,0.00057533,120]
[358256827,1744876368811,-200.0,0.00057609,120]
[358256828,1744876368821,-239.43,0.00057651,120]
[358256829,1744876368831,-206.0,0.0005776,30]
[358256830,1744876368840,-250.0,0.000578,30]
[358256831,1744876368850,-250.0,0.000578,30]
[358256832,1744876368861,-250.0,0.000578,30]
[358256833,1744876368870,-500.0,0.00057808,46]
[358256834,1744876368881,-50000.0,0.00058,58]
[358256835,1744876368891,-33972.58651703,0.00058,10]
[358256836,1744876368901,-6667.97852996,0.00058,120]
[358256837,1744876368911,-1846.73752026,0.00058,120]
[358256838,1744876368922,-1800.0,0.00058,59]
[358256839,1744876368932,-800.0,0.00058,120]
[358256840,1744876368941,-400.0,0.00058,120]
[358256841,1744876368950,-2000.0,0.00058,120]
[358256842,1744876368961,-860.23,0.00058,120]
[358256843,1744876368971,-418.0,0.00058,30]
[358256844,1744876368981,-1500.0,0.00058,120]
[358256845,1744876368991,-500.0,0.00058005,120]
[358256846,1744876369001,-1900.0,0.00058018,120]
[358256847,1744876369011,-150.0,0.00058095,120]
[358256848,1744876369020,-2959.86,0.000581,60]
[358256849,1744876369029,-1100.0,0.00058117,120]
[358256850,1744876369038,-1900.0,0.00058142,120]
[358256851,1744876369047,-500.0,0.00058147,120]
[358256852,1744876369057,-1900.0,0.0005816,120]
[358256853,1744876369066,-500.0,0.00058178,120]
[358256854,1744876369076,-1100.0,0.00058199,120]
[358256855,1744876369086,-1900.0,0.00058203,120]
[358256856,1744876369097,-500.0,0.00058209,120]
[358256857,1744876369106,-1100.0,0.00058213,120]
[358256858,1744876369116,-500.0,0.00058224,120]
[358256859,1744876369125,-1100.0,0.00058227,120]
[358256860,1744876369136,-500.0,0.00058231,120]
[358256861,1744876369147,-1100.0,0.00058242,120]
[358256862,1744876369157,-500.0,0.00058261,120]
[358256863,1744876369167,-509.61455883,0.00058284,120]
[358256864,1744876369176,-1900.0,0.0005832,120]
[358256865,1744876369187,-500.0,0.0005833,120]
[358256866,1744876369196,-500.0,0.00058331,120]
[358256867,1744876369205,-500.0,0.00058334,120]
[358256868,1744876369216,-500.0,0.00058356,48]
[358256869,1744876369226,-600.0,0.00058358,120]
[358256870,1744876369235,-1900.0,0.00058372,120]
[358256871,1744876369245,-500.0,0.00058382,120]
[358256872,1744876369255,-1900.0,0.00058398,120]
[358256873,1744876369265,-500.0,0.00058419,120]
[358256874,1744876369275,-600.0,0.0005843,120]
[358256875,1744876369285,-500.0,0.00058446,120]
[358256876,1744876369295,-1900.0,0.00058465,120]
[358256877,1744876369305,-600.0,0.00058465,120]
[358256878,1744876369315,-500.0,0.00058476,120]
[358256879,1744876369325,-500.0,0.00058479,120]
[358256880,1744876369335,-500.0,0.00058489,120]
[358256881,1744876369346,-500.0,0.00058492,120]
[358256882,1744876369356,-1900.0,0.00058494,120]
[358256883,1744876369366,-600.0,0.00058498,120]
[358256884,1744876369377,-500.0,0.00058502,120]
[358256885,1744876369387,-1100.0,0.00058558,120]
[358256886,1744876369398,-500.0,0.00058565,120]
[358256887,1744876369408,-600.0,0.00058572,120]
[358256888,1744876369418,-500.0,0.00058585,120]
[358256889,1744876369428,-600.0,0.00058591,120]
[358256890,1744876369516,-1900.0,0.00058597,120]
[358256891,1744876369527,-500.0,0.00058602,120]
[358256892,1744876369536,-500.0,0.00058607,120]
[358256893,1744876369546,-1100.0,0.00058617,120]
[358256894,1744876369555,-500.0,0.0005862,120]
[358256895,1744876369565,-1100.0,0.00058624,120]
[358256896,1744876369573,-1900.0,0.00058654,120]
[358256897,1744876369583,-500.0,0.00058668,120]
[358256898,1744876369592,-500.0,0.0005867,120]
[358256899,1744876369601,-500.0,0.00058678,120]
[358256900,1744876369611,-454.08,0.0005868,2]
[358256901,1744876369620,-500.0,0.00058702,120]
[358256902,1744876369629,-1100.0,0.00058713,120]
[358256903,1744876369639,-600.0,0.0005872,120]
[358256904,1744876369648,-1068.0,0.00058724,120]
[358256905,1744876369658,-500.0,0.00058725,120]
[358256906,1744876369667,-500.0,0.00058737,120]
[358256907,1744876369677,-500.0,0.00058737,120]
[358256908,1744876369687,-500.0,0.0005874,120]
[358256909,1744876369696,-200.0,0.00058743,120]
[358256910,1744876369706,-500.0,0.00058772,120]
[358256911,1744876369715,-178.80796816,0.000588,120]
[358256912,1744876369723,-500.0,0.000588,120]
[358256913,1744876369733,-209.0,0.0005884,120]
[358256914,1744876369742,-500.0,0.00058845,120]
[358256915,1744876369751,-500.0,0.00058845,120]
[358256916,1744876369760,-600.0,0.00058863,120]
[358256917,1744876369769,-1100.0,0.00058866,120]
[358256918,1744876369778,-987.88834923,0.00058883,120]
[358256919,1744876369787,-1100.0,0.00058894,120]
[358256920,1744876369796,-10000.0,0.000589,120]
[358256921,1744876369806,-750.0,0.000589,120]
[358256922,1744876369815,-2000.0,0.000589,90]
[358256923,1744876369824,-500.0,0.00058904,50]
[358256924,1744876369834,-1100.0,0.00058905,120]
[358256925,1744876369843,-1900.0,0.00058925,120]
[358256926,1744876369853,-1100.0,0.00058944,120]
[358256927,1744876369862,-500.0,0.00058947,120]
[358256928,1744876369871,-209.0,0.0005897,30]
[358256929,1744876369880,-600.0,0.00058972,120]
[358256930,1744876369889,-500.0,0.00058977,120]
[358256931,1744876369899,-500.0,0.0005898,120]
[358256932,1744876369908,-50000.0,0.00059,59]
[358256933,1744876369917,-9092.46982278,0.00059,120]